fUSD/lending_fUSD_20240409
["ID","MTS","AMOUNT","RATE_DAILY","PERIOD"]
[322005902,1712681432880,-39729.42721308,0.00019076,2]
[322005906,1712681432908,-2537.11242315,0.00019076,2]
[322005939,1712681438539,-3306.7,0.00019076,2]
[322005940,1712681438870,-1076.69556344,0.00019076,2]
[322005941,1712681438882,-16698.36135966,0.00019076,2]
[322005942,1712681438931,-138101.92248151,0.00019076,2]
[322005944,1712681438943,-1509.11685064,0.00019076,2]
[322005947,1712681438954,-2557.40609827,0.00019076,2]
[322005949,1712681438965,-2860.29912059,0.00019076,2]
[322005951,1712681438976,-5973.31856001,0.00019076,2]
[322005954,1712681439012,-74651.01943516,0.00019076,2]
[322005991,1712681440306,-3188.14168046,0.00019076,2]
[322005992,1712681440317,-85329.58243691,0.00019076,2]
[322005993,1712681440428,-19445.46983494,0.00019076,2]
[322005994,1712681440440,-702.42,0.00019076,2]
[322005995,1712681440528,-6620.4000376,0.00019076,2]
[322005996,1712681440624,-8782.75619996,0.00019076,2]
[322006007,1712681443441,-3367.91066912,0.00019076,2]
[322006008,1712681443453,-1769.976,0.00019076,2]
[322006009,1712681443587,-4684.16493928,0.00019076,2]
[322006010,1712681443599,-1085.07231174,0.00019076,2]
[322006011,1712681443610,-634.76863972,0.00019076,2]
[322006012,1712681443715,-1249655.32026379,0.00019076,2]
[322006013,1712681443725,-647692.97348233,0.00019077,2]
[322006014,1712681443735,-683.8337493,0.00019078,2]
[322006015,1712681443744,-215.17320242,0.00019078,2]
[322006016,1712681443754,-168.52025508,0.00019078,2]
[322006017,1712681443764,-1813.14538268,0.00019078,2]
[322006018,1712681443774,-197.94233674,0.00019078,3]
[322006019,1712681443783,-343.951287,0.00019078,2]
[322006020,1712681443793,-3553.8245,0.00019078,2]
[322006021,1712681443803,-100000.0,0.00019078,2]
[322006022,1712681443812,-541.01411113,0.00019081,2]
[322006023,1712681443822,-541.01411113,0.00019081,2]
[322006024,1712681443831,-800.0,0.00019151,2]
[322006025,1712681443841,-500.0,0.00019178,2]
[322006026,1712681443850,-500.0,0.00019178,2]
[322006027,1712681443861,-500.0,0.00019178,2]
[322006028,1712681443871,-500.0,0.00019178,2]
[322006029,1712681443881,-420.91,0.00019178,2]
[322006030,1712681443895,-500.0,0.00019178,2]
[322006031,1712681443906,-500.0,0.00019178,2]
[322006032,1712681443918,-500.0,0.00019178,2]
[322006033,1712681443929,-500.0,0.00019178,2]
[322006034,1712681443938,-500.0,0.00019178,2]
[322006035,1712681443949,-500.0,0.00019178,2]
[322006036,1712681443958,-500.0,0.00019178,2]
[322006037,1712681443968,-500.0,0.00019178,2]
[322006038,1712681443976,-500.0,0.00019178,2]
[322006039,1712681443985,-522.01,0.00019178,2]
[322006040,1712681443995,-736.33,0.00019178,2]
[322006041,1712681444004,-500.0,0.00019178,2]
[322006042,1712681444014,-506.09,0.00019178,2]
[322006043,1712681444023,-500.0,0.00019178,2]
[322006044,1712681444032,-500.0,0.00019178,2]
[322006045,1712681444041,-500.0,0.00019178,2]
[322006046,1712681444050,-500.0,0.00019178,2]
[322006047,1712681444059,-500.0,0.00019178,2]
[322006048,1712681444069,-239.53,0.00019178,2]
[322006049,1712681444078,-500.0,0.00019178,2]
[322006050,1712681444087,-500.0,0.00019178,2]
[322006051,1712681444096,-500.0,0.00019178,2]
[322006052,1712681444105,-500.0,0.00019178,2]
[322006053,1712681444114,-500.0,0.00019178,2]
[322006054,1712681444123,-500.0,0.00019178,2]
[322006055,1712681444133,-603.01,0.00019178,2]
[322006056,1712681444142,-531.63,0.00019178,2]
[322006057,1712681444151,-155.32786466,0.00019178,2]
[322006058,1712681444160,-482.3,0.00019178,2]
[322006059,1712681444171,-500.0,0.00019178,2]
[322006060,1712681444180,-500.0,0.00019178,2]
[322006061,1712681444189,-500.0,0.00019178,2]
[322006062,1712681444199,-500.0,0.00019178,2]
[322006063,1712681444208,-500.0,0.00019178,2]
[322006064,1712681444217,-500.0,0.00019178,2]
[322006065,1712681444227,-500.0,0.00019178,2]
[322006066,1712681444237,-561.83,0.00019178,2]
[322006067,1712681444246,-500.0,0.00019178,2]
[322006068,1712681444256,-500.0,0.00019178,2]
[322006069,1712681444265,-500.0,0.00019178,2]
[322006070,1712681444275,-500.0,0.00019178,2]
[322006071,1712681444284,-500.0,0.00019178,2]
[322006072,1712681444294,-566.57483973,0.00019178,2]
[322006073,1712681444305,-315.82994025,0.00019178,2]
[322006074,1712681444314,-500.0,0.00019178,2]
[322006075,1712681444324,-500.0,0.00019178,2]
[322006076,1712681444334,-490.17,0.00019178,2]
[322006077,1712681444344,-500.0,0.00019178,2]
[322006078,1712681444355,-500.0,0.00019178,2]
[322006079,1712681444366,-502.62630635,0.00019178,2]
[322006080,1712681444375,-521.27,0.00019178,2]
[322006081,1712681444385,-500.0,0.00019178,2]
[322006082,1712681444395,-950.68,0.00019178,2]
[322006083,1712681444405,-500.0,0.00019178,2]
[322006084,1712681444418,-500.0,0.00019178,2]
[322006085,1712681444428,-531.62,0.00019178,2]
[322006086,1712681444438,-500.0,0.00019178,2]
[322006087,1712681444448,-849.63,0.00019178,2]
[322006088,1712681444458,-263.89,0.00019178,2]
[322006089,1712681444467,-500.0,0.00019178,2]
[322006090,1712681444476,-500.0,0.00019178,2]
[322006091,1712681444485,-500.0,0.00019178,2]
[322006092,1712681444494,-500.0,0.00019178,2]
[322006093,1712681444503,-500.0,0.00019178,2]
[322006094,1712681444512,-500.0,0.00019178,2]
[322006095,1712681444521,-500.0,0.00019178,2]
[322006096,1712681444530,-500.0,0.00019178,2]
[322006097,1712681444539,-500.0,0.00019178,2]
[322006098,1712681444548,-530.58,0.00019178,2]
[322006099,1712681444558,-500.0,0.00019178,2]
[322006100,1712681444567,-500.0,0.00019178,2]
[322006101,1712681444576,-500.0,0.00019178,2]
[322006102,1712681444585,-500.0,0.00019178,2]
[322006103,1712681444595,-500.0,0.00019178,2]
[322006104,1712681444604,-500.0,0.00019178,2]
[322006105,1712681444614,-640.54,0.00019178,2]
[322006106,1712681444623,-500.0,0.00019178,2]
[322006107,1712681444633,-500.0,0.00019178,2]
[322006108,1712681444642,-500.0,0.00019178,2]
[322006109,1712681444652,-500.0,0.00019178,2]
[322006110,1712681444664,-500.0,0.00019178,2]
[322006111,1712681444673,-500.0,0.00019178,2]
[322006112,1712681444682,-500.0,0.00019178,2]
[322006113,1712681444692,-500.0,0.00019178,2]
[322006114,1712681444701,-500.0,0.00019178,2]
[322006115,1712681444710,-500.0,0.00019178,2]
[322006116,1712681444720,-326.80167876,0.00019178,2]
[322006117,1712681444729,-500.0,0.00019178,2]
[322006118,1712681444738,-500.0,0.00019178,2]
[322006119,1712681444747,-500.0,0.00019178,2]
[322006120,1712681444756,-500.0,0.00019178,2]
[322006121,1712681444765,-500.0,0.00019178,2]
[322006122,1712681444775,-500.0,0.00019178,2]
[322006123,1712681444784,-500.0,0.00019178,2]
[322006125,1712681444793,-500.0,0.00019178,2]
[322006127,1712681444802,-500.0,0.00019178,2]
[322006129,1712681444811,-500.0,0.00019178,2]
[322006131,1712681444820,-500.0,0.00019178,2]
[322006133,1712681444829,-500.0,0.00019178,2]
[322006135,1712681444839,-500.0,0.00019178,2]
[322006141,1712681445074,-500.0,0.00019178,2]
[322006142,1712681445085,-668.25,0.00019178,2]
[322006143,1712681445094,-500.0,0.00019178,2]
[322006144,1712681445104,-500.0,0.00019178,2]
[322006145,1712681445115,-621.59,0.00019178,2]
[322006146,1712681445125,-739.56,0.00019178,2]
[322006147,1712681445135,-193.99503183,0.00019178,2]
[322006148,1712681445144,-500.0,0.00019178,2]
[322006149,1712681445153,-500.0,0.00019178,2]
[322006150,1712681445163,-500.0,0.00019178,2]
[322006151,1712681445172,-500.0,0.00019178,2]
[322006152,1712681445181,-500.0,0.00019178,2]
[322006153,1712681445191,-728.03,0.00019178,2]
[322006154,1712681445200,-500.0,0.00019178,2]
[322006155,1712681445209,-500.0,0.00019178,2]
[322006156,1712681445218,-500.0,0.00019178,2]
[322006157,1712681445228,-500.0,0.00019178,2]
[322006158,1712681445238,-500.0,0.00019178,2]
[322006159,1712681445247,-500.0,0.00019178,2]
[322006160,1712681445258,-630.32,0.00019178,2]
[322006161,1712681445268,-593.62,0.00019178,2]
[322006162,1712681445278,-545.49,0.00019178,2]
[322006163,1712681445287,-500.0,0.00019178,2]
[322006164,1712681445296,-500.0,0.00019178,2]
[322006165,1712681445306,-500.0,0.00019178,2]
[322006166,1712681445315,-500.0,0.00019178,2]
[322006167,1712681445325,-500.0,0.00019178,2]
[322006168,1712681445335,-500.0,0.00019178,2]
[322006169,1712681445344,-500.0,0.00019178,2]
[322006170,1712681445354,-500.0,0.00019178,2]
[322006171,1712681445363,-500.0,0.00019178,2]
[322006172,1712681445373,-500.0,0.00019178,2]
[322006173,1712681445382,-500.0,0.00019178,2]
[322006174,1712681445393,-500.0,0.00019178,2]
[322006175,1712681445402,-500.0,0.00019178,2]
[322006176,1712681445414,-482.32,0.00019178,2]
[322006177,1712681445424,-500.0,0.00019178,2]
[322006178,1712681445434,-150.0,0.00019178,2]
[322006179,1712681445444,-500.0,0.00019178,2]
[322006180,1712681445453,-500.0,0.00019178,2]
[322006181,1712681445462,-500.0,0.00019178,2]
[322006182,1712681445472,-500.0,0.00019178,2]
[322006183,1712681445481,-500.0,0.00019178,2]
[322006184,1712681445490,-500.0,0.00019178,2]
[322006185,1712681445500,-500.0,0.00019178,2]
[322006186,1712681445509,-500.0,0.00019178,2]
[322006187,1712681445518,-500.0,0.00019178,2]
[322006188,1712681445528,-500.0,0.00019178,2]
[322006189,1712681445537,-500.0,0.00019178,2]
[322006190,1712681445548,-500.0,0.00019178,2]
[322006191,1712681445559,-500.0,0.00019178,2]
[322006192,1712681445569,-518.99334274,0.00019178,2]
[322006193,1712681445578,-500.0,0.00019178,2]
[322006194,1712681445588,-500.0,0.00019178,2]
[322006195,1712681445597,-500.0,0.00019178,2]
[322006196,1712681445606,-500.0,0.00019178,2]
[322006197,1712681445616,-500.0,0.00019178,2]
[322006198,1712681445626,-500.0,0.00019178,2]
[322006199,1712681445635,-500.0,0.00019178,2]
[322006200,1712681445644,-594.69,0.00019178,2]
[322006201,1712681445654,-500.0,0.00019178,2]
[322006202,1712681445665,-500.0,0.00019178,2]
[322006203,1712681445674,-500.0,0.00019178,2]
[322006204,1712681445684,-500.0,0.00019178,2]
[322006205,1712681445693,-500.0,0.00019178,2]
[322006206,1712681445703,-500.0,0.00019178,2]
[322006207,1712681445713,-2124.85,0.00019178,2]
[322006208,1712681445723,-500.0,0.00019178,2]
[322006209,1712681445732,-500.0,0.00019178,2]
[322006210,1712681445741,-1329.75,0.00019178,2]
[322006211,1712681445751,-500.0,0.00019178,2]
[322006212,1712681445760,-500.0,0.00019178,2]
[322006213,1712681445769,-500.0,0.00019178,2]
[322006214,1712681445779,-500.0,0.00019178,2]
[322006215,1712681445788,-1050.18,0.00019178,2]
[322006216,1712681445797,-500.0,0.00019178,2]
[322006217,1712681445807,-500.0,0.00019178,2]
[322006218,1712681445816,-513.90844138,0.00019178,2]
[322006219,1712681445825,-500.0,0.00019178,2]
[322006220,1712681445835,-500.0,0.00019178,2]
[322006221,1712681445844,-500.0,0.00019178,2]
[322006222,1712681445853,-500.0,0.00019178,2]
[322006223,1712681445863,-2157.96,0.00019178,2]
[322006224,1712681445871,-500.0,0.00019178,2]
[322006225,1712681445881,-789.71,0.00019178,2]
[322006226,1712681445894,-500.0,0.00019178,2]
[322006227,1712681445904,-500.0,0.00019178,2]
[322006228,1712681445915,-500.0,0.00019178,2]
[322006229,1712681445924,-500.0,0.00019178,2]
[322006230,1712681445933,-500.0,0.00019178,2]
[322006231,1712681445942,-822.83,0.00019178,2]
[322006232,1712681445951,-500.0,0.00019178,2]
[322006233,1712681445960,-500.0,0.00019178,2]
[322006234,1712681445970,-500.0,0.00019178,2]
[322006235,1712681445979,-500.0,0.00019178,2]
[322006236,1712681445992,-908.15,0.00019178,2]
[322006237,1712681446001,-500.0,0.00019178,2]
[322006238,1712681446011,-500.0,0.00019178,2]
[322006239,1712681446020,-500.0,0.00019178,2]
[322006240,1712681446030,-500.0,0.00019178,2]
[322006241,1712681446040,-500.0,0.00019178,2]
[322006242,1712681446049,-500.0,0.00019178,2]
[322006243,1712681446059,-9750.51,0.00019178,2]
[322006244,1712681446068,-500.0,0.00019178,2]
[322006245,1712681446078,-500.0,0.00019178,2]
[322006246,1712681446088,-895.65,0.00019178,2]
[322006247,1712681446098,-500.0,0.00019178,2]
[322006248,1712681446108,-500.0,0.00019178,2]
[322006249,1712681446118,-1134.65,0.00019178,2]
[322006251,1712681446128,-500.0,0.00019178,2]
[322006253,1712681446138,-635.25,0.00019178,2]
[322006255,1712681446147,-500.0,0.00019178,2]
[322006257,1712681446157,-500.0,0.00019178,2]
[322006259,1712681446169,-543.16,0.00019178,2]
[322006261,1712681446179,-633.48,0.00019178,2]
[322006263,1712681446188,-500.0,0.00019178,2]
[322006267,1712681446198,-500.0,0.00019178,2]
[322006270,1712681446207,-500.0,0.00019178,2]
[322006274,1712681446216,-537.23,0.00019178,2]
[322006277,1712681446226,-500.0,0.00019178,2]
[322006280,1712681446235,-500.0,0.00019178,2]
[322006283,1712681446244,-527.66,0.00019178,2]
[322006285,1712681446253,-12845.55,0.00019178,2]
[322006288,1712681446262,-2529.45,0.00019178,2]
[322006291,1712681446272,-500.0,0.00019178,2]
[322006294,1712681446282,-969.23,0.00019178,2]
[322006297,1712681446291,-500.0,0.00019178,2]
[322006300,1712681446301,-401.44310437,0.00019178,2]
[322006304,1712681446310,-1636.13,0.00019178,2]
[322006306,1712681446319,-500.0,0.00019178,2]
[322006308,1712681446328,-500.0,0.00019178,2]
[322006310,1712681446337,-983.92,0.00019178,2]
[322006312,1712681446347,-819.44,0.00019178,2]
[322006314,1712681446356,-1343.91,0.00019178,2]
[322006316,1712681446366,-543.58,0.00019178,2]
[322006318,1712681446375,-618.15,0.00019178,2]
[322006320,1712681446385,-661.74,0.00019178,2]
[322006321,1712681446394,-500.0,0.00019178,2]
[322006323,1712681446403,-716.85,0.00019178,2]
[322006324,1712681446414,-500.0,0.00019178,2]
[322006326,1712681446424,-3405.91,0.00019178,2]
[322006327,1712681446434,-1098.08,0.00019178,2]
[322006329,1712681446444,-1197.25,0.00019178,2]
[322006331,1712681446453,-663.32,0.00019178,2]
[322006332,1712681446462,-1563.5,0.00019178,2]
[322006333,1712681446472,-1928.53,0.00019178,2]
[322006335,1712681446482,-500.0,0.00019178,2]
[322006336,1712681446491,-1666.12,0.00019178,2]
[322006338,1712681446501,-591.28,0.00019178,2]
[322006340,1712681446510,-500.0,0.00019178,2]
[322006341,1712681446520,-676.0,0.00019178,2]
[322006343,1712681446529,-500.0,0.00019178,2]
[322006345,1712681446539,-654.36,0.00019178,2]
[322006346,1712681446548,-500.0,0.00019178,2]
[322006348,1712681446557,-241.15999388,0.00019178,2]
[322006350,1712681446567,-500.0,0.00019178,2]
[322006351,1712681446576,-500.0,0.00019178,2]
[322006353,1712681446585,-500.0,0.00019178,2]
[322006354,1712681446595,-1777.01,0.00019178,2]
[322006356,1712681446604,-500.0,0.00019178,2]
[322006358,1712681446613,-811.29,0.00019178,2]
[322006359,1712681446622,-1268.74,0.00019178,2]
[322006361,1712681446631,-1237.36,0.00019178,2]
[322006363,1712681446640,-1315.02,0.00019178,2]
[322006364,1712681446649,-500.0,0.00019178,2]
[322006366,1712681446658,-500.0,0.00019178,2]
[322006368,1712681446669,-500.0,0.00019178,2]
[322006369,1712681446678,-837.38,0.00019178,2]
[322006371,1712681446687,-694.6,0.00019178,2]
[322006373,1712681446696,-500.0,0.00019178,2]
[322006374,1712681446706,-540.54,0.00019178,2]
[322006376,1712681446717,-683.52,0.00019178,2]
[322006378,1712681446726,-609.32,0.00019178,2]
[322006379,1712681446735,-1753.17,0.00019178,2]
[322006381,1712681446745,-523.57,0.00019178,2]
[322006383,1712681446754,-560.22,0.00019178,2]
[322006385,1712681446763,-1874.77,0.00019178,2]
[322006386,1712681446772,-696.49,0.00019178,2]
[322006387,1712681446781,-500.0,0.00019178,2]
[322006388,1712681446793,-500.0,0.00019178,2]
[322006389,1712681446804,-500.0,0.00019178,2]
[322006390,1712681446813,-500.0,0.00019178,2]
[322006391,1712681446822,-500.0,0.00019178,2]
[322006392,1712681446831,-384.77,0.00019178,2]
[322006393,1712681446840,-500.0,0.00019178,2]
[322006394,1712681446849,-4687.23,0.00019178,2]
[322006395,1712681446859,-3599.02,0.00019178,2]
[322006396,1712681446869,-739.5,0.00019178,2]
[322006397,1712681446878,-500.0,0.00019178,2]
[322006398,1712681446890,-335.48,0.00019178,2]
[322006399,1712681446900,-539.18,0.00019178,2]
[322006400,1712681446909,-792.22,0.00019178,2]
[322006401,1712681446920,-476.17,0.00019178,2]
[322006402,1712681446930,-500.0,0.00019178,2]
[322006403,1712681446939,-500.0,0.00019178,2]
[322006404,1712681446949,-558.7,0.00019178,2]
[322006405,1712681446958,-838.47,0.00019178,2]
[322006406,1712681446968,-810.61,0.00019178,2]
[322006407,1712681446981,-747.04,0.00019178,2]
[322006408,1712681446990,-500.0,0.00019178,2]
[322006409,1712681446999,-883.52,0.00019178,2]
[322006410,1712681447009,-500.0,0.00019178,2]
[322006411,1712681447018,-3352.03,0.00019178,2]
[322006412,1712681447027,-500.0,0.00019178,2]
[322006413,1712681447037,-554.54,0.00019178,2]
[322006414,1712681447047,-500.0,0.00019178,2]
[322006415,1712681447057,-1707.35,0.00019178,2]
[322006416,1712681447066,-1052.71,0.00019178,2]
[322006417,1712681447075,-1571.87,0.00019178,2]
[322006418,1712681447085,-500.0,0.00019178,2]
[322006419,1712681447095,-4454.55,0.00019178,2]
[322006420,1712681447104,-670.54,0.00019178,2]
[322006421,1712681447114,-500.0,0.00019178,2]
[322006422,1712681447123,-500.0,0.00019178,2]
[322006423,1712681447132,-588.27,0.00019178,2]
[322006424,1712681447141,-606.31,0.00019178,2]
[322006425,1712681447150,-500.0,0.00019178,2]
[322006426,1712681447160,-931.69,0.00019178,2]
[322006427,1712681447170,-7809.67,0.00019178,2]
[322006428,1712681447179,-634.2,0.00019178,2]
[322006429,1712681447188,-579.57,0.00019178,2]
[322006430,1712681447198,-1129.52,0.00019178,2]
[322006431,1712681447207,-1571.01,0.00019178,2]
[322006432,1712681447217,-705.15,0.00019178,2]
[322006433,1712681447226,-689.9,0.00019178,2]
[322006434,1712681447236,-500.0,0.00019178,2]
[322006435,1712681447245,-500.0,0.00019178,2]
[322006436,1712681447254,-1524.4,0.00019178,2]
[322006437,1712681447263,-500.0,0.00019178,2]
[322006438,1712681447271,-500.0,0.00019178,2]
[322006439,1712681447281,-500.0,0.00019178,2]
[322006440,1712681447290,-500.0,0.00019178,2]
[322006441,1712681447300,-3023.09,0.00019178,2]
[322006442,1712681447309,-500.0,0.00019178,2]
[322006443,1712681447318,-500.0,0.00019178,2]
[322006444,1712681447327,-500.0,0.00019178,2]
[322006445,1712681447337,-500.0,0.00019178,2]
[322006446,1712681447346,-519.13,0.00019178,2]
[322006447,1712681447355,-1026.56,0.00019178,2]
[322006448,1712681447365,-1127.43,0.00019178,2]
[322006449,1712681447374,-549.41,0.00019178,2]
[322006450,1712681447383,-500.0,0.00019178,2]
[322006451,1712681447393,-500.0,0.00019178,2]
[322006452,1712681447402,-500.0,0.00019178,2]
[322006453,1712681447411,-1255.89,0.00019178,2]
[322006454,1712681447422,-526.25841043,0.00019178,2]
[322006455,1712681447432,-259.03325042,0.00019178,2]
[322006456,1712681447443,-500.0,0.00019178,2]
[322006457,1712681447453,-500.0,0.00019178,2]
[322006458,1712681447462,-500.0,0.00019178,2]
[322006459,1712681447472,-500.0,0.00019178,2]
[322006460,1712681447490,-500.0,0.00019178,2]
[322006461,1712681447499,-569.6,0.00019178,2]
[322006462,1712681447508,-8744.15,0.00019178,2]
[322006463,1712681447518,-500.0,0.00019178,2]
[322006464,1712681447527,-799.13,0.00019178,2]
[322006465,1712681447536,-1205.66,0.00019178,2]
[322006466,1712681447545,-500.0,0.00019178,2]
[322006467,1712681447554,-934.37,0.00019178,2]
[322006468,1712681447568,-1136.52,0.00019178,2]
[322006469,1712681447619,-500.0,0.00019178,2]
[322006470,1712681447629,-500.0,0.00019178,2]
[322006471,1712681447639,-719.09,0.00019178,2]
[322006472,1712681447649,-678.43,0.00019178,2]
[322006473,1712681447660,-500.0,0.00019178,2]
[322006474,1712681447673,-933.66,0.00019178,2]
[322006475,1712681447683,-500.0,0.00019178,2]
[322006476,1712681447692,-943.82,0.00019178,2]
[322006477,1712681447703,-588.41,0.00019178,2]
[322006478,1712681447712,-500.0,0.00019178,2]
[322006479,1712681447721,-500.0,0.00019178,2]
[322006480,1712681447732,-500.0,0.00019178,2]
[322006481,1712681447741,-2320.44,0.00019178,2]
[322006482,1712681447750,-265.8,0.00019178,2]
[322006483,1712681447760,-991.2,0.00019178,2]
[322006484,1712681447770,-500.0,0.00019178,2]
[322006485,1712681447780,-2754.78,0.00019178,2]
[322006486,1712681447790,-500.0,0.00019178,2]
[322006487,1712681447800,-500.0,0.00019178,2]
[322006488,1712681447809,-500.0,0.00019178,2]
[322006489,1712681447819,-500.0,0.00019178,2]
[322006490,1712681447830,-500.0,0.00019178,2]
[322006491,1712681447841,-500.0,0.00019178,2]
[322006492,1712681447856,-1619.55,0.00019178,2]
[322006493,1712681447867,-500.0,0.00019178,2]
[322006494,1712681447877,-897.28,0.00019178,2]
[322006495,1712681447888,-866.06,0.00019178,2]
[322006496,1712681447897,-500.0,0.00019178,2]
[322006497,1712681447909,-539.7,0.00019178,2]
[322006498,1712681447922,-711.46,0.00019178,2]
[322006499,1712681447932,-1742.97,0.00019178,2]
[322006500,1712681447942,-500.0,0.00019178,2]
[322006501,1712681447951,-581.78,0.00019178,2]
[322006502,1712681447961,-500.0,0.00019178,2]
[322006503,1712681447971,-1243.77,0.00019178,2]
[322006504,1712681447980,-889.93,0.00019178,2]
[322006505,1712681447989,-500.0,0.00019178,2]
[322006506,1712681448001,-500.0,0.00019178,2]
[322006507,1712681448012,-1128.42,0.00019178,2]
[322006508,1712681448021,-500.0,0.00019178,2]
[322006509,1712681448031,-505.76,0.000192,2]
[322006510,1712681448040,-4097.5235,0.00019352,2]
[322006511,1712681448051,-1000.0,0.00019352,2]
[322006512,1712681448062,-1237.09570526,0.00019451,2]
[322006513,1712681448072,-500.0,0.00019451,2]
[322006514,1712681448081,-476008.12345075,0.00019452,2]
[322006515,1712681448304,-2032.40053275,0.00019452,2]
[322006516,1712681448317,-4540.0,0.00019452,2]
[322006517,1712681448331,-743.0334,0.00019452,2]
[322006518,1712681448342,-898.128,0.00019452,2]
[322006519,1712681448912,-500.0,0.00019178,2]
[322006520,1712681448932,-500.0,0.00019178,2]
[322006521,1712681448942,-10095.36180371,0.00019452,2]
[322006522,1712681448954,-1068.21830524,0.00019452,2]
[322006523,1712681448967,-601.93717688,0.00019452,2]
[322006524,1712681448992,-1575.12018832,0.00019452,2]
[322006525,1712681449004,-95139.52588503,0.00019452,2]
[322006526,1712681449016,-373.19766039,0.00019452,2]
[322006527,1712681449025,-500.0,0.00019452,2]
[322006528,1712681449035,-500.0,0.00019452,2]
[322006529,1712681449045,-500.0,0.00019452,2]
[322006530,1712681449054,-500.0,0.00019452,2]
[322006531,1712681449064,-500.0,0.00019452,2]
[322006532,1712681449073,-500.0,0.00019452,2]
[322006533,1712681449083,-500.0,0.00019452,2]
[322006534,1712681449092,-500.0,0.00019452,2]
[322006535,1712681449101,-500.0,0.00019452,2]
[322006536,1712681449111,-343.09,0.00019452,2]
[322006537,1712681449121,-500.0,0.00019452,2]
[322006538,1712681449131,-522.01,0.00019452,2]
[322006539,1712681449141,-736.33,0.00019452,2]
[322006540,1712681449152,-506.09,0.00019452,2]
[322006541,1712681449162,-500.0,0.00019452,2]
[322006542,1712681449178,-500.0,0.00019452,2]
[322006543,1712681449188,-500.0,0.00019452,2]
[322006544,1712681449395,-500.0,0.00019452,2]
[322006545,1712681449439,-500.0,0.00019452,2]
[322006546,1712681449449,-500.0,0.00019452,2]
[322006547,1712681449459,-500.0,0.00019452,2]
[322006548,1712681449468,-500.0,0.00019452,2]
[322006549,1712681449477,-500.0,0.00019452,2]
[322006550,1712681449487,-500.0,0.00019452,2]
[322006551,1712681449496,-500.0,0.00019452,2]
[322006552,1712681449506,-531.63,0.00019452,2]
[322006553,1712681449514,-500.0,0.00019452,2]
[322006554,1712681449523,-500.0,0.00019452,2]
[322006555,1712681449532,-180.51,0.00019452,2]
[322006556,1712681449542,-500.0,0.00019452,2]
[322006557,1712681449551,-500.0,0.00019452,2]
[322006558,1712681449559,-500.0,0.00019452,2]
[322006559,1712681449568,-500.0,0.00019452,2]
[322006560,1712681449578,-561.83,0.00019452,2]
[322006561,1712681449587,-500.0,0.00019452,2]
[322006562,1712681449596,-500.0,0.00019452,2]
[322006563,1712681449605,-500.0,0.00019452,2]
[322006564,1712681449614,-500.0,0.00019452,2]
[322006565,1712681449625,-500.0,0.00019452,2]
[322006566,1712681449636,-500.0,0.00019452,2]
[322006567,1712681449647,-500.0,0.00019452,2]
[322006568,1712681449657,-500.0,0.00019452,2]